bitfinex/quotes_BTCUSD_20230113
["timestamp","ask_amount","ask_price","bid_price","bid_amount"]
[1673642619827,0.44122062,19435.0,19434.0,0.33196918]
[1673642620070,0.23091568,19435.0,19433.0,0.00414887]
[1673642620592,0.14568897,19435.0,19434.0,0.227283]
[1673642621092,0.14568897,19435.0,19434.0,0.227286]
[1673642621348,1.4671,19437.0,19433.0,1.39454404]
[1673642621618,1.4671,19440.0,19434.0,1.35891706]
[1673642621859,0.14568897,19437.0,19436.0,0.63251452]
[1673642622107,0.14568897,19437.0,19436.0,2.06241563]
[1673642622361,0.14568897,19437.0,19436.0,3.06428487]
[1673642622608,0.07202691,19437.0,19436.0,3.4441016]
[1673642623368,0.07202691,19437.0,19436.0,3.5919016]
[1673642623615,0.07202691,19441.0,19436.0,3.83893851]
[1673642623869,0.07202691,19441.0,19439.0,0.15209475]
[1673642624133,0.15749271,19441.0,19440.0,0.227203]
[1673642624381,0.22951962,19441.0,19440.0,0.227203]
[1673642624623,0.07202691,19441.0,19440.0,0.227203]
[1673642625117,0.07202691,19441.0,19440.0,0.31657548]
[1673642625364,0.07202691,19441.0,19438.0,0.15209475]
[1673642625614,0.07202691,19441.0,19436.0,0.80943504]
[1673642625615,0.87228094,19441.0,19436.0,0.80943504]
[1673642625861,0.07202691,19437.0,19436.0,0.80943504]
[1673642626112,0.07202691,19437.0,19436.0,1.28334785]
[1673642626355,0.07202691,19437.0,19436.0,2.01738538]
[1673642626600,0.07202691,19437.0,19436.0,1.83129297]
[1673642626849,0.07202691,19437.0,19436.0,2.13548246]
[1673642627097,0.07202691,19437.0,19436.0,3.03022833]
[1673642627340,0.07202691,19437.0,19436.0,3.5624975]
[1673642627844,0.07202691,19437.0,19436.0,1.66310605]
[1673642627845,0.42652585,19437.0,19436.0,1.66310605]
[1673642628089,0.42652585,19437.0,19435.0,0.15248725]
[1673642628090,0.21622091,19437.0,19435.0,0.15248725]
[1673642628834,0.21622091,19437.0,19434.0,0.65494421]
[1673642629082,0.35449894,19437.0,19434.0,0.65494421]
[1673642629339,0.07202691,19435.0,19434.0,0.65494421]
[1673642629586,0.07202691,19435.0,19433.0,0.15663612]
[1673642629840,0.07202691,19435.0,19433.0,0.00414887]
[1673642629841,0.79686685,19435.0,19433.0,0.00414887]
[1673642630116,0.18666165,19434.0,19433.0,0.00414887]
[1673642630620,0.28666165,19434.0,19433.0,0.00414887]
[1673642631121,0.80122365,19434.0,19433.0,0.00414887]
[1673642631364,1.12556765,19434.0,19432.0,0.00329774]
[1673642631624,0.70122365,19434.0,19432.0,0.00329774]
[1673642631870,0.07202691,19433.0,19432.0,0.00329774]
[1673642634112,0.58661491,19433.0,19432.0,0.00329774]
[1673642634368,1.43404691,19433.0,19432.0,0.00329774]
[1673642634616,1.59161771,19433.0,19432.0,0.00329774]
[1673642634842,1.69161771,19433.0,19432.0,0.00329774]
[1673642635323,1.72459757,19433.0,19432.0,0.00329774]
[1673642635571,1.53404691,19433.0,19432.0,0.00329774]
[1673642635843,1.62199604,19433.0,19432.0,0.00329774]
[1673642636083,1.72964691,19433.0,19432.0,0.00329774]
[1673642636598,2.12964691,19433.0,19432.0,0.00329774]
[1673642637356,2.65697961,19433.0,19432.0,0.00329774]
[1673642637860,2.70925968,19433.0,19432.0,0.00329774]
[1673642638360,0.33963,19432.0,19431.0,0.00414887]
[1673642638611,2.3089217,19432.0,19431.0,4.887e-05]
[1673642638871,2.3089217,19432.0,19430.0,0.00414887]
[1673642638872,0.2484,19431.0,19430.0,0.00414887]
[1673642639115,0.99196791,19431.0,19430.0,0.00414887]
[1673642639377,1.83095291,19431.0,19430.0,0.00414887]
[1673642639632,1.83095291,19431.0,19430.0,0.64244248]
[1673642639633,0.91101191,19431.0,19430.0,0.64244248]
[1673642639917,0.58666791,19431.0,19430.0,0.06839312]
[1673642640134,0.91101191,19431.0,19430.0,0.00414887]
[1673642641129,1.07538195,19431.0,19430.0,0.00414887]
[1673642641375,1.43415291,19431.0,19430.0,0.00414887]
[1673642641618,1.53415291,19431.0,19430.0,0.00414887]
[1673642642115,1.68255291,19431.0,19430.0,0.00414887]
[1673642642377,1.85445176,19431.0,19430.0,0.00414887]
[1673642642626,0.07202691,19431.0,19430.0,0.62007223]
[1673642642872,0.07202691,19431.0,19430.0,0.51508223]
[1673642643126,0.07202691,19433.0,19431.0,0.0234016]
[1673642643384,0.07202691,19433.0,19432.0,0.227317]
[1673642643628,0.07202691,19433.0,19432.0,0.327317]
[1673642643887,0.07202691,19433.0,19432.0,0.227317]
[1673642644135,0.514527,19436.0,19432.0,1.50003196]
[1673642644136,0.07202691,19436.0,19432.0,1.50003196]
[1673642644389,0.07202691,19436.0,19433.0,0.25319]
[1673642644660,0.07202691,19436.0,19434.0,0.227288]
[1673642644906,0.07202691,19436.0,19434.0,0.51456]
[1673642645183,0.07202691,19436.0,19435.0,0.051456]
[1673642645439,0.25223858,19436.0,19434.0,1.21491628]
[1673642645682,0.07202691,19436.0,19434.0,1.21491628]
[1673642645938,0.07202691,19436.0,19435.0,0.88261339]
[1673642646711,0.58653591,19436.0,19432.0,0.13849496]
[1673642646947,0.07202691,19433.0,19432.0,0.60445817]
[1673642647453,0.07202691,19435.0,19434.0,0.56539713]
[1673642647954,0.07202691,19435.0,19434.0,0.79268313]
[1673642648455,0.23203621,19437.0,19434.0,0.79268313]
[1673642648704,0.07202691,19439.0,19435.0,0.18425831]
[1673642648950,0.07202691,19439.0,19436.0,0.846757]
[1673642649193,0.07202691,19439.0,19436.0,1.134007]
[1673642649448,0.07202691,19439.0,19437.0,0.227242]
[1673642649692,0.07202691,19439.0,19437.0,0.2411149]
[1673642649941,0.1,19442.0,19437.0,0.2411149]
[1673642649942,0.07202691,19441.0,19438.0,0.227229]
[1673642650201,0.07202691,19441.0,19439.0,0.619419]
[1673642650451,0.07202691,19441.0,19440.0,0.2272]
[1673642650698,0.07202691,19441.0,19439.0,1.13440118]
[1673642650944,0.07202691,19441.0,19440.0,0.34063812]
[1673642651185,0.07202691,19441.0,19440.0,0.90827738]
[1673642651434,0.07202691,19441.0,19440.0,0.68107938]
[1673642651652,0.07202691,19441.0,19440.0,1.42268038]
[1673642651930,0.08941496,19443.0,19440.0,1.42268038]
[1673642652181,0.08941496,19443.0,19441.0,0.14226804]
[1673642652437,0.08941496,19443.0,19442.0,0.227171]
[1673642652694,0.08941496,19443.0,19442.0,0.227169]
[1673642652948,0.08941496,19443.0,19442.0,0.227168]
[1673642653475,0.08941496,19443.0,19442.0,1.11755117]
[1673642653728,0.08941496,19443.0,19442.0,1.53213629]
[1673642654225,0.08941496,19443.0,19442.0,2.04648629]
[1673642654473,0.01738805,19443.0,19442.0,2.09328228]
[1673642654718,0.01738805,19443.0,19442.0,1.99328228]
[1673642655211,0.01738805,19443.0,19442.0,1.80586516]
[1673642655945,0.08941496,19443.0,19442.0,1.29151516]
[1673642656483,0.01738805,19443.0,19442.0,1.29151516]
[1673642656993,0.01738805,19443.0,19442.0,1.255868]
[1673642657241,0.01738805,19443.0,19442.0,1.51292737]
[1673642657490,0.0116693,19443.0,19442.0,2.12232938]
[1673642658252,0.08369621,19443.0,19442.0,1.35092001]
[1673642659985,0.0116693,19443.0,19442.0,1.35092001]
[1673642660237,0.0116693,19443.0,19442.0,1.86527001]
[1673642660498,0.0116693,19443.0,19442.0,1.96527001]
[1673642660748,0.0116693,19443.0,19442.0,2.22745921]
[1673642661491,0.0116693,19443.0,19442.0,1.6180572]
[1673642661737,0.01814297,19445.0,19443.0,0.10578693]
[1673642661986,0.01814297,19445.0,19444.0,1.542891]
[1673642662241,0.01814297,19445.0,19444.0,1.770031]
[1673642662486,0.01814297,19445.0,19444.0,2.11023606]
[1673642663740,0.01814297,19445.0,19444.0,2.54364654]
[1673642664499,0.01814297,19445.0,19444.0,2.01023606]
[1673642665241,0.01814297,19445.0,19444.0,2.11023606]
[1673642666481,0.01814297,19445.0,19444.0,2.68129363]
[1673642666983,0.22844791,19445.0,19444.0,1.82685157]
[1673642667227,0.22844791,19445.0,19444.0,1.31261457]
[1673642667228,0.01814297,19445.0,19444.0,1.31261457]
[1673642667992,0.01814297,19445.0,19444.0,0.00012]
[1673642667993,0.90592377,19445.0,19444.0,0.00012]
[1673642668248,0.01814297,19445.0,19444.0,0.00012]
[1673642668749,0.24375297,19445.0,19444.0,0.00012]
[1673642668999,0.41431111,19445.0,19444.0,0.00012]
[1673642669252,1.09086797,19445.0,19444.0,0.00012]
[1673642669502,1.24122326,19445.0,19444.0,0.00012]
[1673642669752,1.34122326,19445.0,19444.0,0.00012]
[1673642670251,2.37424391,19445.0,19444.0,0.00012]
[1673642670510,2.08148126,19445.0,19444.0,0.00012]
[1673642670766,1.87040119,19445.0,19444.0,0.00012]
[1673642671752,1.70513897,19445.0,19444.0,0.00012]
[1673642672002,2.00513897,19445.0,19444.0,0.00012]
[1673642672996,2.00513897,19445.0,19444.0,6e-05]
[1673642673254,0.1,19444.0,19443.0,0.00590693]
[1673642673498,1.137094,19444.0,19443.0,0.00590693]
[1673642673749,1.53346491,19444.0,19443.0,0.00590693]
[1673642674244,1.20912091,19444.0,19443.0,0.00590693]
[1673642674456,1.69861873,19444.0,19443.0,0.00590693]
[1673642674749,1.27427473,19444.0,19443.0,0.00590693]
[1673642675025,0.07202691,19444.0,19443.0,0.71170094]
[1673642675287,0.07202691,19444.0,19443.0,0.74343443]
[1673642675532,0.07202691,19444.0,19443.0,1.25775743]
[1673642675776,0.07202691,19444.0,19443.0,1.48491043]
[1673642676286,0.07202691,19444.0,19443.0,2.01272783]
[1673642676824,0.12016988,19445.0,19444.0,0.14281088]
[1673642677073,0.12016988,19445.0,19444.0,1.33552891]
[1673642677326,0.12016988,19445.0,19444.0,1.66266791]
[1673642677580,0.04814297,19445.0,19444.0,1.66266791]
[1673642677815,0.04814297,19445.0,19444.0,1.82146791]
[1673642678836,0.04814297,19445.0,19444.0,1.66266791]
[1673642679592,0.04814297,19445.0,19444.0,2.16986136]
[1673642680091,0.04814297,19445.0,19444.0,2.31838358]
[1673642680338,0.04814297,19445.0,19444.0,2.17020082]
[1673642680586,0.04814297,19445.0,19444.0,2.17020227]
[1673642681337,0.04814297,19445.0,19444.0,2.39485203]
[1673642681583,0.04814297,19445.0,19444.0,1.81448976]
[1673642682340,0.04814297,19445.0,19444.0,2.31759176]
[1673642682834,0.04814297,19445.0,19444.0,2.47066646]
[1673642683076,0.04814297,19445.0,19444.0,3.29689916]
[1673642683329,0.04814297,19445.0,19444.0,3.14838048]
[1673642683576,0.04814297,19445.0,19444.0,3.29597741]
[1673642684344,0.02397282,19445.0,19444.0,3.79719831]
[1673642684608,0.02397282,19445.0,19444.0,4.8020785]
[1673642684854,2.82e-06,19445.0,19444.0,5.87708316]
[1673642685099,0.01725747,19446.0,19445.0,0.1]
[1673642685351,0.00097778,19446.0,19445.0,5.12734105]
[1673642685606,0.00097778,19446.0,19445.0,5.37453082]
[1673642686356,0.01725747,19449.0,19446.0,0.10067654]
[1673642686607,0.01725747,19449.0,19448.0,0.67428362]
[1673642686858,0.01526506,19450.0,19449.0,0.1]
[1673642687114,0.08729197,19450.0,19449.0,1.18016019]
[1673642687349,0.08729197,19450.0,19449.0,1.255395]
[1673642689115,0.08729197,19450.0,19447.0,0.01006765]
[1673642689116,0.33205424,19450.0,19447.0,0.01006765]
[1673642689363,0.47033227,19450.0,19447.0,0.58382281]
[1673642689610,0.07202691,19448.0,19447.0,0.58382281]
[1673642689857,0.07202691,19448.0,19446.0,0.00067654]
[1673642690111,0.38233185,19448.0,19446.0,0.00067654]
[1673642690356,0.17202691,19448.0,19446.0,0.00067654]
[1673642691621,0.07202691,19448.0,19446.0,0.00067654]
[1673642692384,0.15416135,19447.0,19446.0,0.00067654]
[1673642692882,0.07202691,19448.0,19447.0,0.63916233]
[1673642693131,0.07202691,19448.0,19447.0,1.30557994]
[1673642693385,0.07202691,19448.0,19447.0,1.76041923]
[1673642693633,0.07202691,19448.0,19447.0,1.90196715]
[1673642693880,0.07202691,19448.0,19447.0,1.76041923]
[1673642694137,0.06202691,19448.0,19447.0,2.04714548]
[1673642694379,0.01526506,19450.0,19447.0,3.23137394]
[1673642694380,0.07729197,19450.0,19447.0,3.23137394]
[1673642694622,0.07729197,19450.0,19449.0,0.39986241]
[1673642694871,0.07729197,19450.0,19449.0,1.04109441]
[1673642695125,0.07729197,19450.0,19449.0,1.55525941]
[1673642695376,0.07729197,19450.0,19449.0,1.88450005]
[1673642695650,0.07729197,19450.0,19449.0,1.73233764]
[1673642695899,0.07729197,19450.0,19449.0,1.88450005]
[1673642696651,0.07729197,19450.0,19449.0,1.98450005]
[1673642697153,0.07729197,19450.0,19449.0,2.58674632]
[1673642697389,0.07729197,19450.0,19449.0,2.43458391]
[1673642697904,0.28759691,19450.0,19449.0,0.227067]
[1673642698154,0.28759691,19450.0,19446.0,0.68243062]
[1673642698155,0.59142997,19450.0,19446.0,0.68243062]
[1673642698397,0.21030494,19449.0,19446.0,0.68243062]
[1673642698638,0.06202691,19447.0,19446.0,1.38931888]
[1673642699126,0.06202691,19447.0,19446.0,1.61641988]
[1673642699658,0.06202691,19447.0,19446.0,1.13771524]
[1673642699910,0.06202691,19447.0,19446.0,0.90947162]
[1673642700416,0.25797754,19447.0,19446.0,0.89424395]
[1673642700673,0.43321679,19447.0,19446.0,0.00073654]
[1673642700915,0.64725585,19447.0,19446.0,0.00073654]
[1673642701175,0.06202691,19447.0,19446.0,0.00073654]
[1673642701422,0.06202691,19447.0,19446.0,0.08994597]
[1673642701664,0.06202691,19447.0,19446.0,0.09000597]
[1673642701907,0.06202691,19447.0,19446.0,0.08000597]
[1673642702918,0.06202691,19447.0,19446.0,0.23216838]
[1673642703431,0.06202691,19447.0,19446.0,0.74641238]
[1673642703688,0.06202691,19447.0,19446.0,1.42492987]
[1673642703960,0.06202691,19447.0,19446.0,2.25652849]
[1673642704213,1.348,19449.0,19447.0,0.02304105]
[1673642704214,0.06202691,19449.0,19447.0,0.02304105]
[1673642704478,0.06202691,19449.0,19448.0,2.06326322]
[1673642704718,0.01526506,19450.0,19448.0,2.29034422]
[1673642704929,0.01526506,19450.0,19449.0,0.92038069]
[1673642705218,0.01526506,19450.0,19449.0,2.17577669]
[1673642705458,0.00565191,19450.0,19449.0,2.63504979]
[1673642705723,0.00565191,19450.0,19449.0,3.08284979]
[1673642705973,0.00565191,19450.0,19449.0,2.39790316]
[1673642706217,0.00565191,19450.0,19449.0,2.85328351]
[1673642706487,0.00565191,19450.0,19449.0,2.09790316]
[1673642706731,0.00565191,19450.0,19449.0,2.69335017]
[1673642706980,0.00565191,19450.0,19449.0,2.76941776]
[1673642707228,0.06767882,19450.0,19449.0,3.07375401]
[1673642707982,0.06767882,19450.0,19449.0,3.22195401]
[1673642708271,0.06767882,19450.0,19449.0,2.53547736]
[1673642708485,0.00565191,19450.0,19449.0,1.85080316]
[1673642708775,0.00565191,19450.0,19449.0,1.95080316]
[1673642709281,0.00565191,19450.0,19449.0,3.37981621]
[1673642709771,0.00565191,19450.0,19449.0,2.62443586]
[1673642710019,0.00565191,19450.0,19449.0,3.00473841]
[1673642710519,0.06767882,19450.0,19449.0,2.08290571]
[1673642710774,0.06767882,19450.0,19449.0,2.23520605]
[1673642711279,0.22110999,19450.0,19449.0,0.74768334]
[1673642711493,0.22110999,19450.0,19449.0,0.227066]
[1673642711734,0.06767882,19450.0,19449.0,0.60752626]
[1673642711977,0.06767882,19450.0,19449.0,0.75151851]
[1673642712456,0.06767882,19450.0,19449.0,0.71582765]
[1673642712705,0.06767882,19450.0,19449.0,0.86016104]
[1673642713213,0.25217788,19450.0,19448.0,0.38046026]
[1673642713451,0.25217788,19450.0,19448.0,0.15219315]
[1673642713697,0.35217788,19450.0,19448.0,0.38046026]
[1673642714192,0.35217788,19450.0,19448.0,0.15219315]
[1673642714934,0.1,19449.0,19447.0,0.05219315]
[1673642715162,0.24268676,19448.0,19447.0,0.05219315]
[1673642715449,0.24268676,19448.0,19447.0,0.28046026]
[1673642715679,0.24268676,19448.0,19447.0,0.41585782]
[1673642715921,0.24268676,19448.0,19447.0,0.36366467]
[1673642715922,0.06202691,19448.0,19447.0,0.36366467]
[1673642716170,0.06202691,19448.0,19447.0,1.56262108]
[1673642716171,0.04622691,19448.0,19447.0,1.56262108]
[1673642717149,0.04622691,19448.0,19447.0,1.78971008]
[1673642717390,0.04622691,19448.0,19447.0,1.78971508]
[1673642717888,0.02965699,19448.0,19447.0,1.55378399]
[1673642718134,0.02965699,19448.0,19447.0,2.30919635]
[1673642718371,0.02965699,19448.0,19447.0,1.80148399]
[1673642718617,0.00565191,19450.0,19447.0,2.36185434]
[1673642718618,0.0353089,19450.0,19447.0,2.36185434]
[1673642718861,0.0353089,19450.0,19449.0,0.45747266]
[1673642718862,0.00565191,19450.0,19449.0,0.45747266]
[1673642719118,0.00565191,19450.0,19449.0,2.72739226]
[1673642719352,0.00565191,19450.0,19449.0,3.30097369]
[1673642719594,0.00565191,19450.0,19449.0,4.8459896]
[1673642719838,0.00565191,19450.0,19449.0,3.8912936]
[1673642720081,0.00565191,19450.0,19449.0,3.61771217]
[1673642720330,0.00065191,19450.0,19449.0,3.46951217]
[1673642721111,0.00065191,19450.0,19449.0,5.250108]
[1673642721377,0.00065191,19450.0,19449.0,5.14787774]
[1673642721622,0.00020955,19450.0,19449.0,5.14787774]
[1673642721893,0.00020955,19450.0,19449.0,5.56567857]
[1673642722145,0.00020955,19450.0,19449.0,5.29419237]
[1673642722404,0.00020955,19450.0,19449.0,3.61114244]
[1673642722648,0.00020955,19450.0,19449.0,3.79478465]
[1673642723645,0.00020955,19450.0,19449.0,3.09140002]
[1673642723893,0.00020955,19450.0,19449.0,6.24578081]
[1673642724143,0.00020955,19450.0,19449.0,5.73950141]
[1673642725372,0.01883954,19451.0,19450.0,0.1]
[1673642725373,0.00551889,19451.0,19450.0,0.1]
[1673642725627,0.00551889,19451.0,19450.0,4.56496671]
[1673642725871,0.00551889,19451.0,19450.0,4.1174096]
[1673642726121,0.00551889,19451.0,19450.0,4.79201671]
[1673642726122,1.889e-05,19451.0,19450.0,4.79201671]
[1673642726363,1.889e-05,19451.0,19450.0,4.3744596]
[1673642726609,1.889e-05,19451.0,19450.0,4.3765596]
[1673642726854,0.01967133,19454.0,19451.0,0.1]
[1673642727098,0.01967133,19454.0,19453.0,0.67410463]
[1673642727344,0.01967133,19454.0,19453.0,4.19479179]
[1673642727591,0.01967133,19454.0,19453.0,3.79426859]
[1673642727841,0.01967133,19454.0,19453.0,4.25044903]
[1673642728075,0.01906047,19456.0,19454.0,0.1]
[1673642728327,0.01906047,19456.0,19455.0,2.8777567]
[1673642728566,0.01906047,19456.0,19455.0,4.10124765]
[1673642728828,0.01906047,19456.0,19455.0,3.99625765]
[1673642729076,0.01906047,19456.0,19455.0,5.0056641]
[1673642729324,0.01906047,19456.0,19455.0,6.08986015]
[1673642729813,0.01906047,19456.0,19455.0,5.53605014]
[1673642730613,0.01906047,19456.0,19455.0,4.79455014]
[1673642731108,0.01906047,19456.0,19455.0,4.79461014]
[1673642731373,4.7e-07,19456.0,19455.0,5.80342858]
[1673642731630,0.02321064,19457.0,19456.0,0.1]
[1673642731880,0.02321064,19457.0,19456.0,2.75983127]
[1673642732126,0.02321064,19457.0,19456.0,3.13479227]
[1673642732628,0.02321064,19457.0,19456.0,3.51404612]
[1673642732873,0.02321064,19457.0,19456.0,3.13479227]
[1673642733372,0.05395869,19460.0,19456.0,3.84346331]
[1673642733622,0.05395869,19460.0,19458.0,0.52659623]
[1673642733875,0.05395869,19460.0,19458.0,3.10801319]
[1673642734125,0.05395869,19460.0,19458.0,3.40801319]
[1673642734389,0.05395869,19460.0,19458.0,3.89243093]
[1673642734632,0.05395869,19460.0,19458.0,3.66497319]
[1673642734874,0.05395869,19460.0,19458.0,3.79347635]
[1673642735119,0.05395869,19460.0,19458.0,3.56601861]
[1673642735571,0.05395869,19460.0,19458.0,3.41438012]
[1673642735818,0.05395869,19460.0,19458.0,3.56601861]
[1673642736101,0.00022099,19459.0,19458.0,3.9307929]
[1673642736351,0.00022099,19459.0,19458.0,4.3393914]
[1673642736613,0.05395869,19460.0,19458.0,4.93922989]
[1673642736857,0.05395869,19460.0,19459.0,2.2356495]
[1673642737116,0.05395869,19460.0,19459.0,3.4903695]
[1673642737359,0.05395869,19460.0,19459.0,3.18709251]
[1673642737606,0.05395869,19460.0,19459.0,3.4903695]
[1673642738118,0.02965699,19462.0,19460.0,0.1]
[1673642738367,0.02965699,19462.0,19461.0,3.4010801]
[1673642738368,9.9e-07,19462.0,19461.0,3.4010801]
[1673642738622,0.01981155,19463.0,19462.0,0.1]
[1673642738868,0.02581048,19466.0,19462.0,2.36271459]
[1673642739126,0.02581048,19466.0,19465.0,0.25686]
[1673642739369,0.02581048,19466.0,19465.0,3.5375507]
[1673642739621,0.02581048,19466.0,19465.0,3.42069842]
[1673642740402,0.02581048,19466.0,19465.0,3.27369842]
[1673642740643,0.02581048,19466.0,19465.0,1.248413]
[1673642741662,0.39114407,19466.0,19465.0,0.226829]
[1673642741904,0.39114407,19466.0,19464.0,0.513766]
[1673642741905,0.18083913,19466.0,19464.0,0.513766]
[1673642742149,0.39114407,19466.0,19464.0,0.16460181]
[1673642742393,0.18083913,19466.0,19465.0,0.00012]
[1673642742643,0.02581048,19466.0,19465.0,0.00012]
[1673642743142,0.17241759,19466.0,19465.0,0.00012]
[1673642744142,0.02581048,19466.0,19465.0,0.00012]
[1673642744653,0.02581048,19466.0,19465.0,6e-05]
[1673642744654,0.22226838,19466.0,19465.0,6e-05]
[1673642744899,0.64661238,19466.0,19465.0,6e-05]
[1673642745399,0.45015448,19466.0,19462.0,1.14073799]
[1673642745648,0.45015448,19466.0,19462.0,0.6804507]
[1673642745649,0.48401542,19466.0,19462.0,0.6804507]
[1673642746138,0.324344,19465.0,19462.0,0.00018]
[1673642746382,0.1,19464.0,19462.0,0.00018]
[1673642746895,0.17740876,19463.0,19462.0,0.514001]
[1673642747138,0.17740876,19463.0,19462.0,0.00018]
[1673642747901,0.17740876,19463.0,19462.0,0.0525809]
[1673642748158,0.17740876,19463.0,19462.0,0.00018]
[1673642748404,0.15966789,19463.0,19462.0,0.00018]
[1673642749411,1.5656,19465.0,19462.0,1.027822]
[1673642749657,1.60026329,19465.0,19463.0,0.2077722]
[1673642749897,1.60026329,19465.0,19463.0,1.2353382]
[1673642750147,1.4656,19465.0,19463.0,1.2353382]
[1673642750418,0.02581048,19466.0,19464.0,0.226846]
[1673642750733,0.02581048,19466.0,19465.0,2.068467]
[1673642751000,0.02581048,19466.0,19465.0,2.5126427]
[1673642752258,0.02581048,19466.0,19465.0,3.12125584]
[1673642752743,0.02581048,19466.0,19465.0,1.267813]
[1673642752744,0.19384723,19466.0,19465.0,1.267813]
[1673642753000,0.19384723,19466.0,19465.0,0.754071]
[1673642753248,0.19384723,19466.0,19465.0,0.527241]
[1673642753504,0.19384723,19466.0,19465.0,1.267812]
[1673642753505,0.02581048,19466.0,19465.0,1.267812]
[1673642753744,0.02581048,19466.0,19465.0,2.63008129]
[1673642755502,0.02581048,19466.0,19465.0,2.44095433]
[1673642756256,0.02581048,19466.0,19465.0,1.781554]
[1673642756504,0.18918955,19466.0,19465.0,1.781554]
[1673642756754,0.18918955,19466.0,19465.0,0.527241]
[1673642757012,0.33708955,19466.0,19465.0,0.527241]
[1673642757767,0.33708955,19466.0,19465.0,1.0937071]
[1673642757768,0.18918955,19466.0,19465.0,1.0937071]
[1673642758010,0.02581048,19466.0,19465.0,0.5799651]
[1673642758509,0.20178899,19466.0,19465.0,0.5799651]
[1673642760750,0.20178899,19466.0,19465.0,0.527241]
[1673642762480,0.02581048,19466.0,19465.0,0.527241]
[1673642762728,0.17259266,19468.0,19467.0,0.09455042]
[1673642762729,0.02469266,19468.0,19467.0,0.09455042]
[1673642762978,0.02469266,19468.0,19467.0,1.34872742]
[1673642763244,0.02462606,19468.0,19467.0,1.34872742]
[1673642763495,0.02462606,19468.0,19467.0,1.49875163]
[1673642763741,0.02462606,19468.0,19467.0,1.65026635]
[1673642763985,0.02462606,19468.0,19467.0,2.09875464]
[1673642764234,0.02462606,19468.0,19467.0,2.09871252]
[1673642764477,0.02462606,19468.0,19467.0,2.04709619]
[1673642764727,0.02462606,19468.0,19467.0,2.09866905]
[1673642765009,0.02462606,19468.0,19467.0,0.98506263]
[1673642765259,0.17004717,19468.0,19467.0,0.98506263]
[1673642765512,0.17004717,19468.0,19467.0,0.09455042]
[1673642765754,0.17004717,19468.0,19467.0,0.09461042]
[1673642766271,0.17004717,19468.0,19467.0,0.09467042]
[1673642766791,0.17004717,19468.0,19467.0,0.60835942]
[1673642767038,0.02462606,19468.0,19467.0,1.13658697]
[1673642767283,0.02462606,19468.0,19467.0,0.90978797]
[1673642767508,0.02462606,19468.0,19467.0,0.98679128]
[1673642767750,0.02462606,19468.0,19467.0,0.83515842]
[1673642767995,0.02462606,19468.0,19467.0,0.60835942]
[1673642768253,0.02462606,19468.0,19467.0,0.75999228]
[1673642768723,0.02462606,19468.0,19467.0,1.08769321]
[1673642768960,0.01510614,19468.0,19467.0,1.23932607]
[1673642769707,0.19113404,19468.0,19467.0,0.09467042]
[1673642770721,0.19113404,19468.0,19467.0,0.09461042]
[1673642772189,0.01510614,19468.0,19467.0,0.09461042]
[1673642772444,0.01510614,19468.0,19467.0,0.24618328]
[1673642772670,0.01510614,19468.0,19467.0,0.94875077]
[1673642772924,0.01510614,19468.0,19467.0,1.31080691]
[1673642773152,0.01510614,19468.0,19467.0,0.79711791]
[1673642773409,1.34582677,19468.0,19467.0,0.09455042]
[1673642773672,1.77017077,19468.0,19467.0,0.09455042]
[1673642775860,1.61467614,19468.0,19467.0,0.09455042]
[1673642776146,2.27623914,19468.0,19467.0,0.09455042]
[1673642776394,0.1,19467.0,19462.0,0.37857474]
[1673642776654,0.1,19467.0,19462.0,0.15169286]
[1673642776655,1.75999194,19466.0,19462.0,0.15169286]
[1673642776895,1.75999194,19466.0,19462.0,6e-05]
[1673642776896,0.83464894,19465.0,19462.0,6e-05]
[1673642777136,0.2958,19463.0,19462.0,6e-05]
[1673642777397,1.34424394,19463.0,19462.0,6e-05]
[1673642777640,1.49471907,19463.0,19462.0,6e-05]
[1673642777901,2.00851407,19463.0,19462.0,6e-05]
[1673642778149,2.10851407,19463.0,19462.0,6e-05]
[1673642779129,2.84631407,19463.0,19459.0,0.00296824]
[1673642779368,0.2958,19460.0,19459.0,0.00296824]
[1673642779609,2.161766,19460.0,19459.0,0.00296824]
[1673642779858,2.270266,19460.0,19459.0,0.00296824]
[1673642780412,1.647892,19460.0,19459.0,0.6950631]
[1673642780654,1.5614,19462.0,19460.0,0.52944862]
[1673642780924,1.4135,19462.0,19460.0,0.63443862]
[1673642781202,0.16416925,19463.0,19460.0,0.53607148]
[1673642781425,0.16416925,19463.0,19461.0,0.05360715]
[1673642781897,0.3161757,19462.0,19460.0,0.15163286]
[1673642783846,0.513795,19463.0,19460.0,1.07984228]
[1673642784102,0.2716568,19464.0,19461.0,0.60309304]
[1673642784357,0.2716568,19464.0,19462.0,0.37851386]
[1673642784593,0.2716568,19464.0,19463.0,0.03785139]
[1673642784832,0.2716568,19464.0,19462.0,0.15163286]
[1673642785866,2.075125,19466.0,19462.0,0.15163286]
[1673642785867,0.27403802,19463.0,19462.0,0.15163286]
[1673642786096,0.27403802,19463.0,19461.0,2.00926178]
[1673642786595,0.27403802,19463.0,19462.0,0.226873]
[1673642786824,0.27403802,19463.0,19461.0,2.00926178]
[1673642787127,0.27403802,19463.0,19461.0,1.7823799]
[1673642787322,0.27403802,19463.0,19462.0,0.226873]
[1673642787571,0.27403802,19463.0,19460.0,0.37851474]
[1673642787810,0.48434296,19463.0,19460.0,0.15163286]
[1673642788051,0.99814196,19463.0,19460.0,0.15163286]
[1673642788308,0.78783702,19463.0,19460.0,0.15163286]
[1673642789079,0.27754312,19462.0,19460.0,0.15163286]
[1673642789327,0.37754312,19462.0,19460.0,0.15163286]
[1673642789560,0.37754312,19462.0,19459.0,1.44369141]
[1673642789561,0.27754312,19462.0,19459.0,1.44369141]
[1673642790074,0.48784806,19462.0,19459.0,0.38148298]
[1673642790311,1.23795094,19462.0,19459.0,0.00296824]
[1673642790543,0.1,19461.0,19459.0,0.00296824]
[1673642790780,0.513874,19460.0,19459.0,0.00296824]
[1673642791258,0.43996063,19460.0,19459.0,0.00296824]
[1673642791740,0.53996063,19460.0,19459.0,0.00296824]
[1673642791977,1.11210873,19460.0,19459.0,0.00296824]
[1673642792234,0.78776473,19460.0,19459.0,0.00296824]
[1673642793220,1.62598273,19460.0,19459.0,0.00277064]
[1673642793511,1.30163873,19460.0,19459.0,0.00277064]
[1673642793754,1.62598273,19460.0,19459.0,0.00277064]
[1673642793992,1.20163873,19460.0,19459.0,0.00277064]
[1673642794463,1.30163873,19460.0,19459.0,0.00277064]
[1673642795205,1.62598273,19460.0,19459.0,0.00277064]
[1673642795449,1.30163873,19460.0,19459.0,0.00277064]
[1673642795934,1.62598273,19460.0,19459.0,0.00277064]
[1673642796414,1.30163873,19460.0,19459.0,0.00277064]
[1673642796666,1.37317863,19460.0,19459.0,0.00277064]
[1673642796919,1.88705263,19460.0,19459.0,0.00277064]
[1673642797164,1.89555263,19460.0,19459.0,0.00277064]
[1673642798393,2.34245263,19460.0,19459.0,0.00277064]
[1673642800875,2.49025263,19460.0,19459.0,0.00277064]
[1673642801161,2.5425327,19460.0,19459.0,0.00277064]